Cogmind - Beta 9.6 @@@ ROGUE MODE // 2020.06.09 @ 19:36:35 Player: Vectis Result: Self-destructed Performance ------------- Evolutions (2) 1000 Regions Visited (5) 1000 Robots Destroyed (80) 400 Value Destroyed (2225) 2225 Prototype IDs (24) 480 Alien Tech Used (0) 0 Bonus (300) 300 TOTAL SCORE: 5405 Bonus ------- Aligned with FarCom 300 Cogmind --------- Core Integrity 248/550 Matter 287/300 Energy 275/275 System Corruption 0% Temperature Cool (-100) Movement Treading (180) Ox1 Location -8/Materials Parts ------- > --- POWER (1) -------- Deuterium Engine > --- PROPULSION (3) --- Light Treads Light Treads Light Treads > --- UTILITY (5) ------ Cryofiber Web High-capacity Storage Unit High-capacity Storage Unit High-capacity Storage Unit Improved Light Armor Plating > --- WEAPON (2) ------- Advanced Beam Cannon Advanced Beam Cannon > --- INVENTORY (28) --- Improved Ion Engine Deuterium Engine Light Nuclear Core Light Nuclear Core Reinforced Deuterium Engine Reinforced Deuterium Engine Light Fission Core Light Treads Light Treads Light Treads Light Treads Improved Heat Sink Advanced Heat Sink Medium Storage Unit High-capacity Storage Unit Large Matter Pod (150) Utility Shielding Hacking Suite EM Pulse Gun Advanced Beam Cannon Advanced Beam Cannon Heavy Assault Rifle Heavy Assault Rifle Minigun Proton Missile Launcher Proton Missile Launcher Improved Datajack Longsword +1 Peak State ------------ > --- POWER ------------ Deuterium Engine > --- PROPULSION ------- Light Treads Light Treads Light Treads > --- UTILITY ---------- Cryofiber Web High-capacity Storage Unit High-capacity Storage Unit High-capacity Storage Unit Improved Light Armor Plating > --- WEAPON ----------- Advanced Beam Cannon Longsword +1 > --- INVENTORY -------- Improved Ion Engine Deuterium Engine Light Nuclear Core Light Nuclear Core Reinforced Deuterium Engine Reinforced Deuterium Engine Light Fission Core Light Treads Light Treads Light Treads Light Treads Improved Heat Sink Advanced Heat Sink Medium Storage Unit High-capacity Storage Unit Large Matter Pod Utility Shielding Hacking Suite EM Pulse Gun Advanced Beam Cannon Advanced Beam Cannon Advanced Beam Cannon Heavy Assault Rifle Heavy Assault Rifle Minigun Proton Missile Launcher Proton Missile Launcher Improved Datajack [Rating: 33] Favorites ----------- Power Ion Engine Engine Ion Engine Propulsion Light Treads Treads Light Treads Wheel Wheel Utility High-capacity Storage Unit Device Improved Heat Sink Storage High-capacity Storage Unit Protection Hardened Medium Armor Plating Weapon Ion Cannon Energy Gun Particle Gun Energy Cannon Ion Cannon Ballistic Gun Assault Rifle Ballistic Cannon Flak Cannon Launcher Rocket Launcher Slashing Weapon Longsword +1 Build | -11 -10 -10 -10 -9 -8 ------- Run | Scr Mat Min Exi Min Mat Slots Evolved 4 | . . . . . 4 Power . | . . . . . . Propulsion 1 | . . . . . 1 Utility 3 | . . . . . 3 Weapon . | . . . . . . Parts Attached 84 | 6 12 8 3 7 48 Power 6 | 1 1 1 1 1 1 Engine 6 | 1 1 1 1 1 1 Core . | . . . . . . Reactor . | . . . . . . Propulsion 24 | 2 3 . . 1 18 Treads 23 | 2 3 . . 1 17 Leg . | . . . . . . Wheel 1 | . . . . . 1 Hover . | . . . . . . Flight . | . . . . . . Utility 18 | 1 2 . 2 . 13 Device 4 | . . . . . 4 Storage 7 | 1 2 . 2 . 2 Processor . | . . . . . . Hackware . | . . . . . . Protection 7 | . . . . . 7 Artifact . | . . . . . . Weapon 36 | 2 6 7 . 5 16 Energy Gun 8 | 2 2 1 . 1 2 Energy Cannon 10 | . . 4 . 1 5 Ballistic Gun 10 | . 4 1 . 1 4 Ballistic Cannon 2 | . . . . . 2 Launcher 5 | . . 1 . 2 2 Special Weapon . | . . . . . . Impact Weapon . | . . . . . . Slashing Weapon 1 | . . . . . 1 Piercing Weapon . | . . . . . . Special Melee Weapon . | . . . . . . Unidentified Prototypes 2 | . . . . . 2 Parts Lost 12 | . . 1 . . 11 Power . | . . . . . . Propulsion 5 | . . . . . 5 Utility 4 | . . . . . 4 Weapon 3 | . . 1 . . 2 Highest Loss Streak 5 | . . 1 . . 5 Average Slot Usage (%) 99 | . 98 99 100 100 97 Engine 12 | . 14 14 14 14 9 Treads 27 | . 27 28 28 28 25 Device 3 | . . . . . 10 Storage 25 | . 27 28 28 28 22 Protection 3 | . . . . . 11 Energy Gun 4 | . 2 3 14 9 . Energy Cannon 13 | . . 22 14 13 11 Ballistic Gun 5 | . 25 2 . 4 3 Naked Turns . | . . . . . . Heaviest Build 122 | 12 39 49 78 79 122 Greatest Support 60 | 40 40 40 40 40 60 Greatest Overweight (x) 3 | . . 1 1 1 3 Average Overweight (x) . | . . . 1 1 1 Largest Inventory Capacity 28 | 6 16 16 20 20 28 Average Capacity 19 | 5 15 16 19 20 23 Most Carried 28 | 4 16 16 20 20 28 Average Carried 18 | 2 13 15 18 20 22 Final Capacity 28 | 6 16 16 20 20 28 Final Carried 28 | 4 16 16 20 20 28 Class Distribution -------------------- 55% | Hauler-Mutant 39% | Mutant 4% | Scavenger-Mutant Dominant Class ---------------- Mutant | -10/Materials Mutant | -10/Mines Hauler-Mutant | -10/Exiles Hauler-Mutant | -9/Mines Hauler-Mutant | -8/Materials Resources | -11 -10 -10 -10 -9 -8 ----------- Run | Scr Mat Min Exi Min Mat Matter Collected 1649 | 260 276 124 40 102 847 Remotely . | . . . . . . Salvage Created 2834 | 100 342 399 . 162 1831 Parts 148 | 1 24 21 . 13 89 Haulers Intercepted 7 | . 2 . . . 5 Recyclers Shooed 2 | . . . . . 2 Parts Field Recycled . | . . . . . . Retrieved Matter . | . . . . . . Parts Self-Destructed . | . . . . . . Prevented . | . . . . . . Kills | -11 -10 -10 -10 -9 -8 ------- Run | Scr Mat Min Exi Min Mat Combat Hostiles Destroyed 61 | . 8 13 . 9 31 Guns 20 | . 8 1 . 2 9 Cannons 29 | . . 11 . 2 16 AOE 12 | . . 1 . 5 6 Classes Destroyed 11 | 1 6 . . 1 3 Worker 4 | . 1 1 . . 2 Builder 1 | . . . . . 1 Hauler 7 | . 2 . . . 5 Recycler 3 | 1 . . . . 2 Operator 2 | . 1 . . . 1 Watcher 2 | . 1 . . . 1 Swarmer 21 | . 6 6 . 6 3 Grunt 28 | . 2 7 . 2 17 Brawler 1 | . . . . 1 . Duelist 1 | . . . . . 1 Sentry 10 | . . . . . 10 Best Kill Streak 7 | 1 3 5 . 4 7 Combat Bots Only 5 | . 2 4 . 4 5 Max Kills in Single Turn 3 | 1 1 2 . 3 3 Gunslinging . | . . . . . . Exploded 3 | . . 1 . 3 3 Melee . | . . . . . . Uniques/NPCs Destroyed . | . . . . . . Combat | -11 -10 -10 -10 -9 -8 -------- Run | Scr Mat Min Exi Min Mat Damage Taken 3077 | . 204 460 . 179 2234 Core 394 | . 7 85 . . 302 Absorbed by Shields . | . . . . . . Core Remaining (%) 81 | 100 . . . 63 . Volleys Fired 189 | 5 30 32 . 9 113 Largest 2 | 2 2 2 . 2 2 Hottest 136 | 80 40 120 . 125 136 Shots Fired 369 | 10 56 61 . 18 224 Gun 176 | 10 56 21 . 8 81 Cannon 186 | . . 39 . 8 139 Launcher 7 | . . 1 . 2 4 Special . | . . . . . . Kinetic 178 | . 52 21 . . 105 Thermal 173 | 5 . 39 . 16 113 Explosive 7 | . . 1 . 2 4 Electromagnetic 11 | 5 4 . . . 2 Robot Hit Streak 35 | 6 19 15 . 3 35 Robot Miss Streak 5 | 2 5 3 . 3 3 Penetration Max . | . . . . . . Secondary Targets 3 | . 1 1 . . 1 Max Gunslinging Chain 1 | . 1 1 . . 1 Shots Hit Robots 260 | 7 36 38 . 8 171 Core Hits 133 | 2 17 19 . 9 86 Critical Hits 16 | . 1 . . . 15 Critical Kills 5 | . . . . . 5 Critical Parts Destroyed 10 | . 1 . . . 9 Melee Attacks 1 | . . . . . 1 Impact . | . . . . . . Slashing 1 | . . . . . 1 Piercing . | . . . . . . Sneak Attacks . | . . . . . . Combat Hostiles . | . . . . . . Follow-up Attacks . | . . . . . . Damage Inflicted 5236 | 86 570 803 . 446 3331 Guns 1595 | 86 525 84 . 64 836 Cannons 2727 | . . 599 . 67 2061 Explosions 905 | . 45 120 . 315 425 Melee . | . . . . . . Ramming 9 | . . . . . 9 Kinetic 1715 | . 473 84 . . 1158 Thermal 2518 | 34 45 599 . 131 1709 Explosive 860 | . . 120 . 315 425 Electromagnetic 134 | 52 52 . . . 30 Impact . | . . . . . . Slashing . | . . . . . . Piercing . | . . . . . . Highest Corruption . | . . . . . . Average Corruption . | . . . . . . Corruption Purged . | . . . . . . Overload Shots . | . . . . . . Overflow Damage 93 | . 28 24 . 14 27 Projectiles 34 | . . 7 . . 27 Explosions 59 | . 28 17 . 14 . Melee . | . . . . . . Knockbacks 9 | . . . . . 9 Impact . | . . . . . . Kinetic 9 | . . . . . 9 Secondary . | . . . . . . Self-Inflicted Damage 89 | . 7 . . 41 41 Shots 4 | . 1 . . 1 2 Rammed 2 | . . . . . 2 Targets Rammed 2 | . . . . . 2 Kicked . | . . . . . . Crushed . | . . . . . . Highest Temperature 300 | 72 12 300 . 139 99 Average Temperature 71 | 33 12 130 . 70 30 Received Heat Transfer 1113 | . 42 165 . 6 900 Siege Activations . | . . . . . . Robots Corrupted . | . . . . . . Combat Hostiles . | . . . . . . Parts Fried 1 | 1 . . . . . Impact Corruptions . | . . . . . . Robots Melted . | . . . . . . Combat Hostiles . | . . . . . . Parts Melted 2 | . . 1 . . 1 Heat Transferred 4417 | 75 50 962 . 259 3071 Parts Sabotaged . | . . . . . . Parts Stolen . | . . . . . . Parts Stripped . | . . . . . . Power Chain Reactions 1 | . 1 . . . . Missiles Intercepted . | . . . . . . Alert | -11 -10 -10 -10 -9 -8 ------- Run | Scr Mat Min Exi Min Mat Peak Influence 289 | 5 188 144 . 154 289 Average Influence 67 | 1 56 58 . 46 91 Maximum Alert Level 1 | . . . . . 1 Low Security (%) 96 | 100 100 100 . 100 91 Level 1 3 | . . . . . 8 Level 2 . | . . . . . . Level 3 . | . . . . . . Level 4 . | . . . . . . Level 5 . | . . . . . . High Security . | . . . . . . Max Security . | . . . . . . Squads Dispatched 10 | . 2 1 . . 7 Investigation 3 | . 1 1 . . 1 Extermination . | . . . . . . Reinforcement 2 | . 1 . . . 1 Assault 1 | . . . . . 1 Garrison 4 | . . . . . 4 Intercept . | . . . . . . Construction Impeded . | . . . . . . Haulers Reinforced . | . . . . . . Stealth | -11 -10 -10 -10 -9 -8 --------- Run | Scr Mat Min Exi Min Mat Distress Signals 2 | . . . . . 2 Communications Jammed . | . . . . . . Distress Signals . | . . . . . . Times Spotted 84 | . 13 16 . 10 45 Peak Tracking Total 5 | . 3 4 . 4 5 Tactical Retreats 6 | . 2 2 . 1 1 Traps | -11 -10 -10 -10 -9 -8 ------- Run | Scr Mat Min Exi Min Mat Traps Triggered 3 | . 1 . . . 2 Indirectly . | . . . . . . Trap Hack Attempts . | . . . . . . Triggered . | . . . . . . Disarmed . | . . . . . . Reprogrammed . | . . . . . . Reused . | . . . . . . Traps Extracted . | . . . . . . Installed . | . . . . . . Triggered . | . . . . . . Machines | -11 -10 -10 -10 -9 -8 ---------- Run | Scr Mat Min Exi Min Mat Machines Disabled 6 | . 1 1 . 2 2 Max in Single Turn 1 | . 1 1 . 1 1 Garrison Access 1 | . . . . . 1 Machines Sabotaged . | . . . . . . Garrisons Compromised . | . . . . . . Overloaded Fab Kills . | . . . . . . Fab Network Shutdowns . | . . . . . . Hacking | -11 -10 -10 -10 -9 -8 --------- Run | Scr Mat Min Exi Min Mat Machines Accessed 15 | . 4 1 1 . 9 Terminals 11 | . 3 . . . 8 Fabricators . | . . . . . . Repair Stations 1 | . 1 . . . . Recycling Units . | . . . . . . Scanalyzers . | . . . . . . Garrison Access 1 | . . . . . 1 Total Hacks 36 | . 8 1 1 . 26 Successful 20 | . 5 1 1 . 13 Failed 16 | . 3 . . . 13 Catastrophic 2 | . 1 . . . 1 Database Lockouts . | . . . . . . Manual 22 | . 5 . 1 . 16 Terminals 28 | . 5 . . . 23 Fabricators . | . . . . . . Repair Stations 3 | . 3 . . . . Recycling Units . | . . . . . . Scanalyzers . | . . . . . . Garrison Access 3 | . . . . . 3 Terminal Hacks 6 | . 1 1 1 . 3 Open Door 1 | . . 1 . . . Unreport Threat 3 | . . . . . 3 Recall Reinforcements 1 | . 1 . . . . EX-Prototype ID Bank 1 | . . . 1 . . Fabricator Hacks . | . . . . . . Repair Station Hacks 3 | . 3 . . . . Scan Component 2 | . 2 . . . . Repair 1 | . 1 . . . . Recycling Unit Hacks . | . . . . . . Scanalyzer . | . . . . . . Garrison Access Hacks 1 | . . . . . 1 Unlock Access 1 | . . . . . 1 Unauthorized Hacks 10 | . 1 . . . 9 Terminals 9 | . 1 . . . 8 Botnet 5 | . . . . . 5 Disrupt 2 | . . . . . 2 Operators 2 | . 1 . . . 1 Fabricators . | . . . . . . Repair Stations . | . . . . . . Recycling Units . | . . . . . . Scanalyzers . | . . . . . . Garrison Access 1 | . . . . . 1 Intercept 1 | . . . . . 1 Data Cores Recovered . | . . . . . . Used . | . . . . . . Hacking Detections 10 | . 4 . . . 6 Full Trace Events 1 | . . . . . 1 Feedback Events . | . . . . . . Feedback Blocked . | . . . . . . Robot Schematics Acquired . | . . . . . . Robots Built . | . . . . . . Matter . | . . . . . . Time . | . . . . . . Total Robot Build Rating . | . . . . . . Part Schematics Acquired . | . . . . . . Parts Built . | . . . . . . Matter . | . . . . . . Time . | . . . . . . Total Part Build Rating . | . . . . . . Parts Repaired 1 | . 1 . . . . Time 26 | . 26 . . . . Parts Recycled . | . . . . . . Recycled Matter . | . . . . . . Retrieved Matter . | . . . . . . Retrieved Components . | . . . . . . Parts Scanalyzed . | . . . . . . Part Schematics Acquired . | . . . . . . Parts Damaged . | . . . . . . Bothacking | -11 -10 -10 -10 -9 -8 ------------ Run | Scr Mat Min Exi Min Mat Used RIF Installer . | . . . . . . Robots Hacked . | . . . . . . Non-combat . | . . . . . . Combat . | . . . . . . Robot Hacks Applied . | . . . . . . Relay Couplers Released 1 | . . . . . 1 Machine Destruction 1 | . . . . . 1 Robots Rewired . | . . . . . . Allies Hacked . | . . . . . . Hacks Repelled . | . . . . . . Allies | -11 -10 -10 -10 -9 -8 -------- Run | Scr Mat Min Exi Min Mat Total Allies 3 | . . 3 . . . Largest Group 3 | . . 3 3 3 3 Highest-Rated Group 40 | . . 40 40 40 40 Highest-Rated Ally 16 | . . 16 16 16 16 Total Orders 22 | . . 13 . 4 5 STAY 11 | . . 6 . 2 3 FOLLOW 11 | . . 7 . 2 2 Ally Attacks 15 | . . . . . 15 Total Damage 96 | . . . . . 96 Kills 1 | . . . . . 1 Allies Corrupted . | . . . . . . Allies Melted . | . . . . . . Intel | -11 -10 -10 -10 -9 -8 ------- Run | Scr Mat Min Exi Min Mat Robot Analysis Total . | . . . . . . Derelict Logs Recovered 1 | . . 1 . . . Drone Launches . | . . . . . . Drone Recoveries . | . . . . . . Exploration | -11 -10 -10 -10 -9 -8 ------------- Run | Scr Mat Min Exi Min Mat Turns Passed 6423 | 113 696 1612 1058 873 2071 Spaces Moved 2978 | 53 299 809 578 425 814 Core 5 | 5 . . . . . Treads 2973 | 48 299 809 578 425 814 Legs . | . . . . . . Wheels . | . . . . . . Hover . | . . . . . . Flight . | . . . . . . Fastest Speed 50 | 50 160 160 180 180 180 Average Speed 179 | 149 160 179 180 180 186 Slowest Speed 220 | 160 160 180 180 180 220 Overloaded Moves . | . . . . . . Propulsion Burnouts . | . . . . . . Robots Hopped . | . . . . . . Cave-ins Triggered . | . . . . . . Exploration Rate (%) 59 | 5 50 99 72 59 72 Regions Visited 5 Branch Regions 3 Pre-discovered Areas . | . . . . . . Known Exits Taken . | . . . . . . Unknown Exits Taken 5 | 1 1 1 1 1 . Scrap Searched 3 | . . 2 . 1 . Spaces Dug 1 | . . . . . 1 Terrain Destroyed 76 | . . 16 . 20 40 Melee 1 | . . . . . 1 Projectile 8 | . . 7 . 1 . AOE 67 | . . 9 . 19 39 Actions | -11 -10 -10 -10 -9 -8 --------- Run | Scr Mat Min Exi Min Mat Total 3692 | 74 457 915 600 514 1132 Wait 351 | 7 103 53 2 71 115 Move 2973 | 52 298 808 577 424 814 Hop . | . . . . . . Pick Up 50 | 4 11 5 10 . 20 Fast Attach 35 | 6 4 4 . 1 20 Attach 9 | . . 1 1 . 7 Detach . | . . . . . . Swap 40 | . 8 3 2 6 21 Drop 42 | . 3 9 8 3 19 Fire 189 | 5 30 32 . 9 113 Melee 1 | . . . . . 1 Ram . | . . . . . . Kick . | . . . . . . Crush 2 | . . . . . 2 Escape Stasis . | . . . . . . Rewire . | . . . . . . Trap . | . . . . . . Miscellaneous . | . . . . . . Route ------- -11/Scrapyard -10/Materials (discovered 2 exits: [*Mat] / *Min) -10/Mines (discovered 3 exits: [*Mat x2] / *Exi) -10/Exiles -9/Mines -8/Materials (discovered 2 exits: [*Fac x2]) History --------- Turn | Location | Event 4 | -11/Scrapyard | Discovered new exit (range 16) 114 | -11/Scrapyard | Entered Materials 311 | -10/Materials | Build established: Mutant 391 | -10/Materials | Discovered new exit (range 7) 527 | -10/Materials | Repaired Lgt. Treads 625 | -10/Materials | Discovered new exit (range 15) 810 | -10/Materials | Entered Mines 815 | -10/Mines | Discovered new exit (range 7) 831 | -10/Mines | Met a Derelict shopkeep closing up shop 996 | -10/Mines | Assisted by bots powering up and referring to "LRC-V3" 1519 | -10/Mines | Received a Rocket Launcher from a helpful Derelict 1779 | -10/Mines | Discovered new exit (range 11) 1997 | -10/Mines | Learned Materials emergency access door positions 2409 | -10/Mines | Deemed a non-threat by the Exiles lab entrance 2409 | -10/Mines | Discovered new exit (range 5) 2422 | -10/Mines | Entered Exiles 2422 | -10/Exiles | Accompanied by 3 allies 2467 | -10/Exiles | Met 8R-AWN 2496 | -10/Exiles | Met EX-HEX 2620 | -10/Exiles | Met EX-DEC 2851 | -10/Exiles | Met EX-BIN 2852 | -10/Exiles | Build established: Hauler-Mutant 2876 | -10/Exiles | Aligned with FarCom system 2878 | -10/Exiles | Given EX-Vault access code 2921 | -10/Exiles | Opened EX-Vault 2935 | -10/Exiles | Found Longsword +1 2978 | -10/Exiles | Warned to stay clear of 0b10 Research branches 3463 | -10/Exiles | Discovered new exit (range 10) 3480 | -10/Exiles | Left Exiles lab with Longsword +1 3480 | -10/Exiles | Entered Mines 3480 | -9/Mines | Accompanied by 3 allies 4221 | -9/Mines | Discovered new exit (range 10) 4353 | -9/Mines | Entered Materials 4353 | -8/Materials | Accompanied by 3 allies 4353 | -8/Materials | Evolved 4 slots: Propulsion x1, Utility x3 4760 | -8/Materials | Discovered new exit (range 5) 5017 | -8/Materials | Identified exit to Garrison 5029 | -8/Materials | Garrison activated, responded to threat 5144 | -8/Materials | Garrison activated, responded to threat 5211 | -8/Materials | Lost 5 parts (2n2u1w) 5259 | -8/Materials | Core integrity fell below 50% 5329 | -8/Materials | Discovered new exit (range 15) 5477 | -8/Materials | Build established: Scavenger-Mutant 5788 | -8/Materials | Build established: Hauler-Mutant 6424 | -8/Materials | Self-destructed Last Messages --------------- 06270_ Acquired Hvy. Assault Rifle. 06274_ Dropped Flak Cannon. 06275_ Acquired Hvy. Assault Rifle. 06277_ Dropped Lgt. Treads. 06286_ Connecting with Terminal... >>Alert(Purge) Purged threat record, alert level lowered. 06291_ R-06 Scavenger collects Lgt. Treads. 06294_ R-06 Scavenger collects Lgt. Armor Plating. 06311_ Dropped Lgt. Treads. 06311_ Acquired Imp. Datajack. 06311_ K-01 Serf cleans the Processing Tank. 06321_ Acquired 43 matter. 06322_ K-01 Serf collects debris. 06359_ K-01 Serf cleans the Terminal. 06410_ ALERT: Garrison Access compromised, dispatching assault squad. 06410_ Garrison Access disabled. 06410_ Relay Coupler [Sentry] tumbles out of Garrison Access. 06411_ U-05 Engineer builds a Wall. 06422_ Acquired 7 matter. Map ----- +----------------------------------------------------+ | ???????????????????# %# #???????? ????# | | ????????????####+??# ########??????????????####" | | ????????????? ]?# #?######?????????????????## | | ?? #??????????"" ]*# # #??????????????????? | | ? #???????????? # # #??????????????????? | | # #?????????????? + + #??????????????????? | | ??????????????? # # "" #??????????????????? | | ???????????????? # # S"" #??????????????????? | | ????????????????#?# #? "" #??????????????????? | | ???????????????????# #?######??????????????????? | | ???????????????????# # #??????Y???????????? | | ?????????????????### # #??????????????????? | | ????????????????## # #??????????????????? | | ????????????????# # #?????????????????## | | #################### # #????????????? | | * %% # #????????????? | | #######?????????????? | | %%% % ##???????????????????###### | | % ########* #???????????????????# | | #???#### ##???????????????????# | | !! ""#??????# ###########??????????# | | !! T"#??????# ## #??????????# "" | | ! ""#?????## ## ! """#??????????# """ | | #?????#! %# """#??????????#! """ | | #?????# # """##########?# """ | | "Y"##############?# T %/@ % # #?# "" | | """# ??# # " "! # """" ###+#### | | #### """ ??# / #%" # """" # ## | | ???# """ ??## ## """ # """" # | | #### !! """ #??# ## # / | | + !! #??# ########### ""# | | ####+############ #?????????# T"# ## | | #?????????# ""######## | | #?????????# % #??????# | | ##################+#??????# | | " "" ############### #####??# | | """"""% #??#T"#???????# % ######## # ?# | | """"" #### "######### # ? ## # """?# | | w # ! ## # """ # | | # ## # """ # | | # ## # + | | ###### #+################# # """ ## # # | | ?????# # #?????######## # """ ## ######## | | ?????# # #???? # # """ # | | ####?????# # #??? """ # # """ / | | ?????????# # #?? """ # %# """ # ####### | | ?????????# # #???S """ # + # #??# | | ?????????#%# #? """ """ # # *= # #??# | | ?????????# # ## "" """ + ]# # #??#/ ! | | ?????????#%# ## #= ####### #??#[! | +----------------------------------------------------+ Best States ------------- Heat Dissipation 64 Energy Generation 14 Energy Capacity 275 Matter Stores 300 Matter Capacity 300 Sight Range 16 Terrain Scan Density 10 Base Temperature (-) 100 Armor Coverage 225 Utility Shielding 33 Weapon Shielding 66 Evasion (%) 40 Recoil Reduction 3 Item Schematics ----------------- None Robot Schematics ------------------ None Fabricated ------------ Nothing Alien Tech Used ----------------- None Achievements -------------- Dramatic Entrance Challenges ------------ None Game ------ Seed TractorGammaExoskeleton Manual? 0 Play Time 00:39:57 Cumulative 86.5 hours Start 2020.06.09 @ 18:44:48 End 2020.06.09 @ 19:36:35 Sessions 1 Manual Loads 0 Difficulty Rogue Special Mode None Game No. 44 Rogue 44 Adventurer 0 Explorer 0 Win Type - Total 5 Types 4/0/0/1/0/0/0 Lore% 64 Gallery% 59 Achievement% 51 Wizard Run 0 Options --------- ASCII 1 Keyboard 0 Movement Numpad Keybinds 0 Fullscreen 1 Font 18/SmallcapsGlow Map View 76x50 Tactical HUD 1 Map Filters NONE Filters NONE Steam 1 RUN: d2b5eca2-91eb-4734-afb0-5f057e7733fd